[Event "European Women-ch 2023"]
[Site "Petrovac"]
[Date "2023.03.27"]
[Round "9.1"]
[White "Arabidze, Meri"]
[Black "Maltsevskaya, Aleksandra"]
[Result "1/2-1/2"]
[ECO "A49"]
[WhiteElo "2433"]
[BlackElo "2388"]
[Annotator "TA"]
[PlyCount "65"]
[EventDate "2023.03.15"]
[EventType "swiss"]
[EventCountry "MNE"]
[SourceTitle "playchess.com"]
[Source "ChessBase"]
[SourceQuality "1"]
[TimeControl "40/5400+30:1800+30"]

{[%evp 12,65,18,8,22,25,24,10,24,26,26,18,24,20,14,14,19,11,12,12,18,25,35,37,41,22,50,27,44,65,93,82,111,90,111,135,127,73,73,73,73,73,73,75,68,0,0,0,0,0,0,0,0,0,0,0]} 1. d4 {[%emt 0:00:07]} Nf6 {[%emt 0:00:07]} 2. Nf3 {[%emt 0:00:06]} g6 {[%emt 0:00:08]} 3. g3 {[%emt 0:00:19]} Bg7 {[%emt 0:00:08]} 4. Bg2 {[%emt 0:00:08]} O-O {[%emt 0:00:09]} 5. O-O {[%emt 0:00:25]} d6 {[%emt 0:00:07]} 6. b3 {[%emt 0:00:16]} a5 {[%emt 0:08:17] 6...e5 is setting a new trend.} 7. Bb2 {[%emt 0:00:52]} a4 {[%emt 0:00:46] A49: 1 d4 Nf6 2 Nf3 g6 3 g3: Anti-King's Indian systems.} 8. c4 {[%emt 0:00:15]} c6 {[%emt 0:12:07]} 9. Nbd2 {[%emt 0:00:38]} d5 {[%emt 0:03:54]} 10. e3 {[%emt 0:01:26]} Bf5 {[%emt 0:05:04]} 11. Qe2 {[%emt 0:00:31]} Ne4 {[%emt 0:01:19]} 12. Nxe4 {[%emt 0:13:54]} Bxe4 {[%emt 0:00:09]} 13. Rfc1 {[%emt 0:01:06] [#]} axb3 $146 {[%emt 0:09:24]} ({Predecessor:} 13... Qb6 14. Ba3 Re8 15. cxd5 cxd5 16. Bc5 Qa6 17. Qd1 Nd7 18. Bf1 Qf6 19. Nd2 Bf5 20. bxa4 Nxc5 21. Rxc5 {½-½ Shimanov,A (2587)-Dimitrov,R (2508) Corsica Masters KO 23rd rapid 2019 (1.1)}) 14. axb3 {[%emt 0:03:28]} Rxa1 {[%emt 0:00:06]} 15. Rxa1 {[%emt 0:12:57]} Nd7 {[%emt 0:00:09]} 16. Bh3 {[%emt 0:11:56]} Bxf3 {[%emt 0:00:52]} 17. Qxf3 {[%emt 0:00:02]} e6 {[%emt 0:06:55]} 18. Qe2 {[%emt 0:03:24]} Re8 {[%emt 0:03:23]} 19. Qc2 {[%emt 0:06:56]} dxc4 {[%emt 0:15:10]} 20. bxc4 {[%emt 0:01:40]} e5 {[%emt 0:02:46] [#]} 21. Rd1 $1 {[%emt 0:09:58] Hoping for dxe5.} e4 {[%emt 0:15:07]} 22. d5 {[%emt 0:01:54]} f5 {[%emt 0:00:14]} 23. Bxg7 {[%emt 0:04:03]} Kxg7 {[%emt 0:00:05]} 24. dxc6 {[%emt 0:00:40]} (24. Qb2+ $142 Ne5 25. Qxb7+ Re7 26. Qb2) 24... bxc6 $16 {[%emt 0:00:05]} 25. Qb2+ {[%emt 0:00:43]} Kf7 {[%emt 0:01:27]} 26. Qb7 {[%emt 0:08:30][%csl LRc6,LRd7]} Re7 {[%emt 0:00:06][%cal Od7b6]} 27. Qxc6 {[%emt 0:01:06] White has more active pieces.} Ne5 {[%emt 0:01:37][%csl LRc6,LRd1][%mdl 64] [#] Discovered Attack} 28. Rxd8 {[%emt 0:00:56]} ({Better is} 28. Qa4 $1 $14 Qb6 29. Bf1) 28... Nxc6 $11 {[%emt 0:00:05] The position is equal.} 29. Rd1 {[%emt 0:00:08]} Ne5 {[%emt 0:04:45]} 30. Bf1 {[%emt 0:00:05]} Ke6 {[%emt 0:00:20]} 31. Be2 {[%emt 0:05:22]} Rb7 {[%emt 0:00:08]} 32. Rc1 {[%emt 0:03:56]} Rb2 {[%emt 0:00:06]} 33. Kf1 {[%emt 0:01:03] Weighted Error Value: White=0.11 (very precise) /Black=0.06 (flawless)} 1/2-1/2

[Event "European Women-ch 2023"]
[Site "Petrovac"]
[Date "2023.03.27"]
[Round "9.1"]
[White "Richterova, Natasa"]
[Black "Dylag, Emilia"]
[Result "1-0"]
[ECO "D38"]
[WhiteElo "2190"]
[BlackElo "2052"]
[Annotator "TA"]
[PlyCount "115"]
[EventDate "2023.03.15"]
[EventType "swiss"]
[EventCountry "MNE"]
[SourceTitle "playchess.com"]
[Source "ChessBase"]
[SourceQuality "1"]
[TimeControl "40/5400+30:1800+30"]

{[%evp 9,115,24,35,1,31,35,37,21,43,24,36,20,40,31,43,34,58,46,92,63,88,93,113,88,114,76,74,74,148,152,123,97,122,122,115,116,164,165,136,164,114,142,206,210,209,210,202,204,194,77,185,187,196,138,178,58,45,7,160,25,25,23,25,22,22,22,22,24,229,237,312,334,261,198,191,209,188,147,206,157,176,162,295,322,322,301,301,306,518,504,474,342,341,331,435,407,415,372,416,415,375,320,744,725,1152,850,5829,5829]} 1. d4 {[%emt 0:00:37]} Nf6 {[%emt 0:00:11]} 2. c4 {[%emt 0:00:22]} e6 {[%emt 0:00:06]} 3. Nf3 {[%emt 0:00:12]} d5 {[%emt 0:00:08]} 4. Nc3 {[%emt 0:00:04]} Bb4 {[%emt 0:00:27]} 5. Bg5 {[%emt 0:00:56]} O-O {[%emt 0:04:24]} (5... dxc4 {is more complex.} 6. e4 c5 7. Bxc4 cxd4 8. Nxd4 Qa5) 6. a3 {[%emt 0:14:16] D38: Queen's Gambit Declined: Ragozin Defence (4 Nf3 Bb4).} Be7 {[%emt 0:01:26]} 7. e3 {[%emt 0:01:16]} b6 {[%emt 0:03:16]} 8. cxd5 {[%emt 0:01:38] White is slightly better.} exd5 {[%emt 0:02:34] [#]} 9. Qb3 $146 {[%emt 0:02:48]} ({Predecessor:} 9. Bd3 Be6 10. Qc2 h6 11. Bh4 c5 12. O-O Qc8 13. Qe2 Nc6 14. Ba6 Qb8 15. Bg3 {1-0 Mantovan,G (1795)-Covello,D (2077) Torino-ch sf 2016 (2)}) 9... Be6 {[%emt 0:13:55]} 10. Be2 {[%emt 0:16:50]} c5 {[%emt 0:06:57]} 11. Rd1 {[%emt 0:04:32]} c4 {[%emt 0:04:42]} 12. Qc2 {[%emt 0:03:43]} Na6 {[%emt 0:06:27]} 13. O-O {[%emt 0:01:20]} Re8 {[%emt 0:17:46]} (13... Nc7 $14 {is superior.}) 14. Ne5 {[%emt 0:01:47]} Qc8 {[%emt 0:07:18] Dodges Nc6} 15. Bf3 {[%emt 0:06:43]} Nc7 {[%emt 0:07:30]} 16. Nc6 {[%emt 0:05:48] White has more active pieces.} Bf5 {[%emt 0:10:47]} 17. Nxe7+ {[%emt 0:02:01]} (17. e4 {with more complications.} dxe4 18. Nxe4 Bf8 19. Bxf6 Qe6 20. Nd8) 17... Rxe7 {[%emt 0:00:11]} 18. Qc1 {[%emt 0:09:13]} Qe6 {[%emt 0:05:22]} (18... Qd7 $142) 19. Bxf6 $16 {[%emt 0:03:16]} gxf6 {[%emt 0:00:06]} 20. Rfe1 {[%emt 0:00:22][%cal Bf1e1,Be1e3,Be3g3][%mdl 32]} Bg4 {[%emt 0:02:17]} 21. Bxg4 {[%emt 0:01:12]} Qxg4 {[%emt 0:00:05]} 22. e4 {[%emt 0:06:56]} dxe4 {[%emt 0:02:50]} (22... Qg5 $16) 23. Re3 {[%emt 0:01:49]} Kh8 {[%emt 0:00:29]} 24. d5 {[%emt 0:01:55][%cal Bd4d5,Bd5d6,Bd6d7][%mdl 1056] White has strong compensation.} Re5 {[%emt 0:00:40]} (24... Rg8 $2 25. Rg3 Qc8 26. d6 $18) 25. Rg3 {[%emt 0:01:10]} Qh5 {[%emt 0:00:29]} (25... Qh4 $16 {is a better defense.}) 26. Qf4 $18 {[%emt 0:01:11][%csl LRe4,LRf6][%cal Rf4f6] [#]} Qf5 {[%emt 0:01:07]} 27. Qh6 {[%emt 0:02:10][%csl Gg3][%cal Rh6g7]} Rg8 {[%emt 0:00:06] Repels Qg7+} 28. d6 {[%emt 0:04:23]} Ne6 {[%emt 0:00:36][%cal Oe4e3]} 29. Rxg8+ {[%emt 0:00:04]} (29. d7 Rd8) 29... Kxg8 {[%emt 0:00:05]} 30. d7 {[%emt 0:00:05]} Nd8 {[%emt 0:00:11]} 31. Qe3 {[%emt 0:00:30]} (31. h4 $18) 31... Qe6 {[%emt 0:01:02]} 32. Qd4 {[%emt 0:02:49]} ({White should play} 32. Rd4 $18) 32... e3 {[%emt 0:02:22]} 33. f3 {[%emt 0:03:34]} f5 $2 {[%emt 0:00:32] [#]} ({Much less strong is} 33... e2 34. Re1 $14) (33... Kg7 $11) 34. f4 {[%emt 0:01:01]} (34. Re1 $1 $16 {Black must now prevent f4.} e2 35. Kf2) 34... e2 $1 $11 {[%emt 0:00:25]} 35. fxe5 {[%emt 0:00:50]} exd1=Q+ {[%emt 0:00:09]} (35... exd1=R+ {simplifies} 36. Nxd1 f6 37. Ne3 fxe5 38. Qxc4 Qxc4 39. Nxc4 Kf7) 36. Nxd1 {[%emt 0:00:03][%mdl 4096] Endgame KQN-KQN} f6 $1 {[%emt 0:00:14][%cal Bf7f6,Bf6e5][%mdl 32]} 37. Ne3 $36 {[%emt 0:00:46][%mdl 2048] White fights for an advantage.} (37. exf6 $2 Qe1#) 37... fxe5 {[%emt 0:00:44]} (37... Qxe5 {simplifies} 38. Qxe5 fxe5 39. Nxc4 Kf7) 38. Qxc4 {[%emt 0:00:05]} Kf7 $2 {[%emt 0:00:56] Black cannot hold the game after this.} (38... Qxc4 $11 {and Black stays safe.} 39. Nxc4 Kf7) 39. Qh4 $18 {[%emt 0:00:25]} Qxd7 {[%emt 0:00:34]} 40. Qxh7+ {[%emt 0:00:00]} Ke8 {[%emt 0:00:00]} 41. Qh8+ {[%emt 0:01:58]} (41. Qxf5 Qd4 42. Qf2 Ne6 $16) 41... Kf7 {[%emt 0:01:10]} 42. Qxe5 {[%emt 0:00:11]} Kg6 {[%emt 0:01:43]} 43. h3 {[%emt 0:08:49][%cal Bh2h3,Bh3h4,Bh4h5,Bh5h6][%mdl 32]} Nc6 {[%emt 0:01:24]} (43... Nf7 $16 44. Qg3+ Kf6 45. Qh4+ Kg6 46. Qg3+ Kf6) 44. Qg3+ {[%emt 0:00:38]} Kf6 {[%emt 0:00:19]} 45. h4 {[%emt 0:05:44] Qg5+ is the strong threat.} Nd4 {[%emt 0:02:11]} (45... Ne7 $142 46. Qf4 (46. Qg5+ Ke6 $16) 46... Qe6) 46. Qg5+ {[%emt 0:00:21]} Kf7 {[%emt 0:02:42]} 47. h5 {[%emt 0:03:07]} Qe6 {[%emt 0:00:35]} 48. Kf2 {[%emt 0:04:32]} ({Not} 48. h6 Qf6 49. Qh5+ Qg6 $16) 48... Qe4 $2 {[%emt 0:08:42]} (48... Qf6 {was necessary.} 49. Qf4 a5) 49. h6 {[%emt 0:00:18] aiming for h7.} f4 {[%emt 0:00:41]} 50. Qd5+ {[%emt 0:01:02]} Qxd5 {[%emt 0:00:06]} 51. Nxd5 {[%emt 0:00:06] KN-KN} Kg6 {[%emt 0:00:17]} 52. Nxf4+ {[%emt 0:00:03]} Kxh6 {[%emt 0:00:05]} 53. Ke3 {[%emt 0:00:22]} Nc6 {[%emt 0:01:58]} 54. Ke4 {[%emt 0:01:18]} Kg5 {[%emt 0:00:17]} 55. Ne2 {[%emt 0:00:56]} Kg4 $2 {[%emt 0:00:56]} (55... Na5 56. Kd5 b5) 56. Kd5 {[%emt 0:01:43] White is clearly winning.} Na5 {[%emt 0:00:49]} 57. Nd4 {[%emt 0:04:02] b4 would be deadly.} a6 {[%emt 0:01:14]} 58. b4 {[%emt 0:00:20] Weighted Error Value: White=0.22 (precise) /Black=0.40} 1-0

[Event "European Women-ch 2023"]
[Site "Petrovac"]
[Date "2023.03.27"]
[Round "9.1"]
[White "Jarocka, Liwia"]
[Black "Narva, Mai"]
[Result "0-1"]
[ECO "B33"]
[WhiteElo "2181"]
[BlackElo "2389"]
[Annotator "TA"]
[PlyCount "124"]
[EventDate "2023.03.15"]
[EventType "swiss"]
[EventCountry "MNE"]
[SourceTitle "playchess.com"]
[Source "ChessBase"]
[SourceQuality "1"]
[TimeControl "40/5400+30:1800+30"]

{[%evp 18,124,20,6,11,-4,2,0,-3,0,9,-52,-46,-55,-48,-50,-54,-98,-111,-107,-89,-103,-58,-61,-2,-47,-12,-43,-33,-31,-15,-18,0,-8,0,0,25,0,28,40,35,39,26,0,8,-18,0,-116,-85,-146,-119,-72,-72,-188,-194,-189,-197,-196,-205,-199,-194,-182,-200,-193,-196,-201,-185,-210,-177,-157,-165,-207,-189,-211,-160,-295,-245,-242,-233,-244,-228,-258,-261,-268,-260,-494,-251,-267,-237,-236,-246,-243,-231,-263,-263,-396,-300,-509,-500,-541,-541,-528,-506,-488,-450,-526,-523,-4606,-4060]} 1. e4 {[%emt 0:00:02]} c5 {[%emt 0:00:51]} 2. Nf3 {[%emt 0:00:12][%cal Bg1f3,Bf3d4,Bd4b5][%mdl 32]} Nc6 {[%emt 0:00:12]} 3. d4 {[%emt 0:00:19]} cxd4 {[%emt 0:00:14]} 4. Nxd4 {[%emt 0:00:06]} Nf6 {[%emt 0:00:20]} 5. Nc3 {[%emt 0:00:06]} e5 {[%emt 0:00:22]} 6. Ndb5 {[%emt 0:00:45]} d6 {[%emt 0:00:14]} 7. Nd5 {[%emt 0:01:07]} Nxd5 {[%emt 0:01:23]} 8. exd5 {[%emt 0:00:07]} Nb8 {[%emt 0:00:46]} 9. c4 {[%emt 0:00:24] 9.a4 is the hot move.} a6 {[%emt 0:12:46]} 10. Qa4 {[%emt 0:31:44]} Nd7 {[%emt 0:06:00] B33: Sicilian: Pelikan and Sveshnikov Variations.} 11. Be3 {[%emt 0:03:02][%cal Oc4c5]} Rb8 {[%emt 0:05:51]} 12. Nc3 {[%emt 0:03:23]} Be7 {[%emt 0:01:19] The position is equal.} 13. Be2 {[%emt 0:00:20]} O-O {[%emt 0:01:44] [#]} 14. g4 $146 {[%emt 0:04:41]} (14. f3 $11) ({Predecessor:} 14. O-O f5 15. f3 Bg5 16. Bf2 Qf6 17. Qa3 Qh6 18. Kh1 b6 19. Rad1 Rf6 20. Rd3 {½-½ Bluhm,G (1790)-Jaeger,A (1965) Berlin-ch QT 2018 (4)}) 14... Bg5 {[%emt 0:04:21]} 15. Bxg5 {[%emt 0:02:12]} Qxg5 {[%emt 0:00:07]} 16. Qa3 {[%emt 0:00:32]} Nf6 {[%emt 0:08:37][%cal Bd7f6,Bf6g4,Bg4h2][%mdl 32] Prevents Ne4.} 17. Qxd6 {[%emt 0:13:34]} Bxg4 {[%emt 0:04:51][%cal Ob7b5] ...b5! is the strong threat.} 18. Qb6 {[%emt 0:00:50]} Bxe2 {[%emt 0:15:39]} 19. Nxe2 {[%emt 0:00:05]} Qf5 {[%emt 0:09:29]} 20. Rg1 {[%emt 0:05:45]} Kh8 {[%emt 0:03:41]} ({Black should try} 20... g6 $15) 21. Rc1 {[%emt 0:01:11]} Ng4 {[%emt 0:02:34]} 22. h3 {[%emt 0:03:26]} Nh2 {[%emt 0:00:34]} 23. Rg3 {[%emt 0:01:32]} h5 {[%emt 0:01:34]} 24. Ng1 {[%emt 0:03:12] Prevents Nf3+.} h4 {[%emt 0:00:50]} (24... Qf4 25. Qe3 $16) 25. Re3 {[%emt 0:00:22]} Qg5 {[%emt 0:01:32]} 26. Ke2 {[%emt 0:02:41]} f5 {[%emt 0:01:13] Hoping for ...f4.} 27. Re1 {[%emt 0:02:17]} Rbe8 {[%emt 0:03:49]} (27... Rbc8 $5 {[%cal Rc8c4]} 28. b3 e4 $11) 28. Kd1 {[%emt 0:04:31]} Qf4 {[%emt 0:07:10][%csl LRc4,LRf2]} 29. Rc3 {[%emt 0:02:23]} e4 {[%emt 0:00:18][%cal Be5e4,Be4e3,Be3e2][%mdl 32]} 30. Qe3 {[%emt 0:03:09]} (30. Qxb7 Qxf2 31. Rc2 Qg3 $17) 30... Qd6 {[%emt 0:00:51]} 31. Qg5 {[%emt 0:00:32]} f4 {[%emt 0:00:06]} (31... Kg8 {simplifies} 32. Qd2 f4 33. f3 Nxf3 34. Nxf3 exf3 35. Rxf3 g5) 32. Qxh4+ {[%emt 0:00:20]} (32. Kc1 $11) 32... Kg8 $17 {[%emt 0:00:04]} 33. Qg5 {[%emt 0:01:11]} (33. Kc1 $142) 33... Qb6 $1 $36 {[%emt 0:00:55][%csl LRb2,LRf2][%mdl 2048] Keeping White busy.} 34. Rc2 {[%emt 0:02:41]} e3 $1 {[%emt 0:06:07]} 35. f3 {[%emt 0:01:09] [#]} (35. fxe3 $17 {was forced.} Rxe3 36. Rxe3 (36. Rxh2 $2 Qd4+ 37. Rd2 Qe4 $19) 36... Qxe3 37. Rxh2 Qd3+ 38. Kc1 (38. Rd2 Qf1+ 39. Kc2 Qxc4+ 40. Kd1 Qf1+ 41. Kc2 Rc8+ 42. Kb3 Qc4+ 43. Ka3 b5) 38... Qxc4+ 39. Kd2 (39. Rc2 $2 Qf1+ 40. Kd2 Re8 $19)) 35... e2+ $1 $19 {[%emt 0:00:54][%mdl 576] Deflection} 36. Rexe2 {[%emt 0:01:16]} Nf1 {[%emt 0:00:21] And now ...Qd4+ would win.} 37. Kc1 {[%emt 0:02:49][%cal Od5d6]} Ng3 {[%emt 0:00:36]} 38. c5 {[%emt 0:01:39]} Nxe2+ {[%emt 0:00:11]} 39. Nxe2 {[%emt 0:00:04]} Qa5 {[%emt 0:00:38][%cal Ra5e1]} 40. Kb1 {[%emt 0:00:00] [#]} Qe1+ $1 {[%emt 0:00:00]} 41. Nc1 {[%emt 0:01:34]} Re5 {[%emt 0:08:51] Against d6} 42. Qg6 {[%emt 0:03:37]} Rxd5 {[%emt 0:01:08]} (42... Rf6 43. Qd3 $14) 43. Re2 {[%emt 0:01:10]} Qd1 {[%emt 0:00:31]} 44. Qe6+ {[%emt 0:05:02]} (44. Re7 Qd4 45. b4 a5 46. Rxb7 axb4 $17) 44... Kh8 {[%emt 0:00:27]} 45. Qe7 {[%emt 0:05:23]} Rc8 {[%emt 0:04:58]} 46. Rg2 {[%emt 0:00:55]} (46. b4 $17) 46... Qd4 {[%emt 0:04:33] Active counter play!} (46... Rcxc5 $2 47. Qxg7#) 47. Rg4 {[%emt 0:01:30] White wants to mate with Rh4+.} Qe5 {[%emt 0:00:29]} (47... Rcxc5 $2 48. Rh4+ (48. Qxb7 $2 {gets mated.} Rxc1+ {[%mdl 64] Back Rank} 49. Kxc1 Qd1#) 48... Rh5 49. Rxh5+ Rxh5 50. Qe8+ (50. Qxb7 $2 Qd6 $19) 50... Kh7 51. Qxh5+ $18) 48. Qxe5 {[%emt 0:03:43]} Rxe5 {[%emt 0:00:05]} 49. Rxf4 {[%emt 0:02:43]} Rexc5 {[%emt 0:00:24][%csl Gc8][%cal Rc5c1][%mdl 4096] Endgame KRR-KRN} (49... Rcxc5 $2 {loses.} 50. Nd3 Rf5 51. Re4 $19 (51. Rh4+ $2 Rh5 $19)) 50. Nb3 {[%emt 0:00:23]} Rc4 {[%emt 0:02:32]} 51. Rf7 {[%emt 0:00:17]} (51. Rg4) 51... Rb4 {[%emt 0:00:26]} (51... a5 $142 {aiming for ...a4.} 52. a3 a4 53. Rxb7 axb3 54. Rxb3 Rh4) 52. Rd7 {[%emt 0:01:45]} Rcc4 {[%emt 0:06:00]} 53. Rd3 {[%emt 0:01:31]} Rh4 {[%emt 0:00:39]} 54. a3 {[%emt 0:00:08]} Rbc4 {[%emt 0:00:59][%cal Bb4c4,Bc4c7,Bc7c6][%mdl 32]} 55. Na5 {[%emt 0:00:45]} Rc7 {[%emt 0:00:00]} 56. Rd8+ {[%emt 0:00:20]} Kh7 {[%emt 0:00:00]} 57. Rb8 $2 {[%emt 0:00:05]} (57. Nb3) 57... Rxh3 {[%emt 0:00:22] Black is clearly winning.} 58. Nxb7 {[%emt 0:00:21]} Rxf3 {[%emt 0:00:18] Strongly threatening ...Rb3.} 59. Nd6 {[%emt 0:00:18]} Rc6 {[%emt 0:00:32]} 60. Ne4 {[%emt 0:00:08] Threatens to win with Ng5+.} Re3 {[%emt 0:00:48]} 61. Nf2 {[%emt 0:01:08]} g5 {[%emt 0:00:28]} 62. b4 {[%emt 0:00:30]} Re1+ {[%emt 0:00:43] Weighted Error Value: White=0.42/Black=0.14 (very precise)} 0-1

[Event "European Women-ch 2023"]
[Site "Petrovac"]
[Date "2023.03.27"]
[Round "9.2"]
[White "Beydullayeva, Govhar"]
[Black "Hrebenshchykova, Yelyzaveta"]
[Result "1-0"]
[ECO "D38"]
[WhiteElo "2388"]
[BlackElo "2289"]
[Annotator "TA"]
[PlyCount "119"]
[EventDate "2023.03.15"]
[EventType "swiss"]
[EventCountry "MNE"]
[SourceTitle "playchess.com"]
[Source "ChessBase"]
[SourceQuality "1"]
[TimeControl "40/5400+30:1800+30"]

{[%evp 11,119,16,18,18,8,19,13,20,34,22,85,82,85,97,89,91,86,83,95,87,88,83,84,87,85,83,84,90,84,67,89,80,110,91,94,73,69,34,49,60,40,0,43,42,66,41,494,501,502,489,478,168,554,401,398,388,388,168,168,162,162,162,162,162,169,169,211,219,265,260,267,263,316,207,306,298,293,295,282,268,276,263,254,277,510,507,533,502,529,520,496,497,645,620,581,569,825,825,825,723,720,720,784,783,913,979,1124,1120,1498,930]} 1. d4 {[%emt 0:00:01]} Nf6 {[%emt 0:00:07]} 2. c4 {[%emt 0:00:05]} e6 {[%emt 0:00:05]} 3. Nf3 {[%emt 0:00:06]} d5 {[%emt 0:00:05]} 4. Nc3 {[%emt 0:00:11]} Bb4 {[%emt 0:00:23]} 5. Qa4+ {[%emt 0:00:25]} Nc6 {[%emt 0:00:06]} 6. e3 {[%emt 0:00:04]} O-O {[%emt 0:02:22]} 7. Qc2 {[%emt 0:00:14] D38: Queen's Gambit Declined: Ragozin Defence (4 Nf3 Bb4).} Re8 {[%emt 0:13:17]} 8. Bd2 {[%emt 0:02:25]} dxc4 {[%emt 0:06:22]} 9. Bxc4 {[%emt 0:00:59] The position is equal.} Bd6 {[%emt 0:03:43]} 10. O-O {[%emt 0:07:41]} e5 {[%emt 0:07:49]} (10... a6 $11) 11. Ng5 $16 {[%emt 0:06:09]} Rf8 {[%emt 0:12:10]} 12. Nd5 {[%emt 0:12:49] Intending Nxf6+ and mate. White is much more active. The black rooks are badly placed.} g6 {[%emt 0:02:58] White must now prevent ...Nxd5.} 13. Nxf6+ {[%emt 0:04:52]} Qxf6 {[%emt 0:00:04]} 14. Ne4 {[%emt 0:01:09]} Qe7 {[%emt 0:02:07]} 15. Nxd6 {[%emt 0:10:09]} Qxd6 {[%emt 0:01:06]} 16. d5 {[%emt 0:02:15] [#]} Ne7 $146 {[%emt 0:04:04]} ({Predecessor:} 16... Nb4 17. Qb3 Na6 18. e4 Nc5 19. Qa3 a5 20. Rfe1 Bd7 21. Rac1 b6 22. Bh6 Rfe8 {1-0 Pultinevicius,P (2546)-Kosakowski,J (2437) EU-ch Blitz Katowice 2021 (20)}) 17. Rfd1 {[%emt 0:01:44]} c6 {[%emt 0:02:39]} 18. dxc6 {[%emt 0:02:03]} Nxc6 {[%emt 0:01:04]} 19. Bc3 {[%emt 0:03:41]} Qe7 {[%emt 0:06:41]} 20. Qb3 {[%emt 0:07:23]} Rb8 {[%emt 0:14:59]} 21. Bd5 {[%emt 0:06:26]} Bd7 {[%emt 0:00:08]} 22. Rac1 {[%emt 0:00:06]} Rfd8 {[%emt 0:02:42]} 23. Be1 {[%emt 0:13:57][%cal Bc3e1,Be1h4,Bh4f2][%mdl 32]} Be8 {[%emt 0:04:29]} 24. Qc4 {[%emt 0:00:11]} Kg7 {[%emt 0:02:27]} 25. f4 {[%emt 0:03:38]} f6 {[%emt 0:00:58]} 26. Bh4 {[%emt 0:02:42]} exf4 {[%emt 0:02:03]} 27. exf4 {[%emt 0:01:23]} (27. Qxf4 $2 g5 28. Qg3 Bg6 29. Bxg5 fxg5 $19) 27... Qd6 {[%emt 0:06:51][%cal Oe8f7]} 28. Qe2 {[%emt 0:07:03] Bxc6 would be deadly.} (28. Qb3 $5 {[%cal Rd5c6]} Qb4 29. Qe3 $14) 28... Ne7 {[%emt 0:02:05][%mdl 8192] This move loses the game for Black.} (28... Qe7 $14 29. Qf3 Bf7) 29. Bb3 $18 {[%emt 0:00:46] A strong pair of Bishops.} Qb6+ {[%emt 0:00:11]} 30. Bf2 {[%emt 0:00:08][%mdl 64] [#] Skewer} Rxd1+ {[%emt 0:00:03]} 31. Qxd1 $2 {[%emt 0:02:15]} (31. Rxd1 Qc7 32. Qe6 (32. Bxa7 Ra8 $16)) 31... Qb4 {[%emt 0:01:13]} (31... Qd8 {is more resistant.} 32. Qxd8 (32. Bxa7 Qxd1+ 33. Rxd1 Rc8 $16) 32... Rxd8) 32. Rc4 {[%emt 0:01:15] Black is weak on the dark squares} ({Less strong is} 32. Bxa7 Rc8 $16) 32... Qa5 {[%emt 0:00:29]} 33. Qd6 {[%emt 0:00:21][%csl LRb8,LRe7]} Qd8 {[%emt 0:00:37]} 34. Qxd8 {[%emt 0:00:37]} (34. Bc5 $142) 34... Rxd8 {[%emt 0:00:55] [#]} 35. Rc7 {[%emt 0:00:52]} ({But not} 35. Bxa7 Rd7 $16) 35... Rd7 {[%emt 0:00:00]} 36. Rxd7 {[%emt 0:00:07]} Bxd7 {[%emt 0:00:00]} 37. Bxa7 {[%emt 0:00:04][%mdl 4096] Endgame KBB-KBN} Bc6 {[%emt 0:00:41]} 38. Bc5 {[%emt 0:00:44]} Nf5 {[%emt 0:00:42]} 39. g3 {[%emt 0:01:59][%cal Bg2g3,Bg3f4][%mdl 32] Prevents Nh4.} h5 {[%emt 0:00:34]} 40. a4 {[%emt 0:00:00]} g5 {[%emt 0:00:00]} 41. Bc2 {[%emt 0:01:29]} Nh6 {[%emt 0:02:13]} 42. Bd4 {[%emt 0:06:21]} Nf7 {[%emt 0:02:39]} (42... Kf7 $142 43. b4 Ke6 44. fxg5 fxg5) 43. h4 {[%emt 0:04:15]} gxf4 {[%emt 0:05:01]} 44. gxf4 {[%emt 0:00:01]} Nd6 {[%emt 0:00:06]} 45. Kf2 {[%emt 0:00:10]} Kf7 {[%emt 0:00:54]} 46. b4 {[%emt 0:01:05][%cal Bb2b4,Bb4b5][%mdl 32]} Ke6 {[%emt 0:05:25]} 47. Ke2 {[%emt 0:04:24]} f5 $2 {[%emt 0:09:02]} (47... Nf5 {was called for.} 48. Bf2 Nd6) 48. b5 {[%emt 0:02:35] White is clearly winning.} Bd5 {[%emt 0:00:25]} 49. Bd1 {[%emt 0:03:27]} Kd7 {[%emt 0:06:17]} 50. Ke3 {[%emt 0:02:04]} Bf7 {[%emt 0:00:57]} 51. Bc5 {[%emt 0:01:21]} Ne4 {[%emt 0:01:22]} 52. Kd4 {[%emt 0:00:16]} Nd2 {[%emt 0:02:10]} 53. Bb4 {[%emt 0:00:44]} Nf1 {[%emt 0:00:31]} 54. Bf3 {[%emt 0:00:54]} Kc7 {[%emt 0:00:18]} 55. Ke5 {[%emt 0:01:30]} Nh2 {[%emt 0:00:19]} 56. Be2 {[%emt 0:00:30]} Ng4+ {[%emt 0:00:47]} 57. Kxf5 {[%emt 0:00:10]} Be8 {[%emt 0:00:33]} 58. a5 {[%emt 0:01:05][%cal Ba4a5,Ba5a6][%mdl 32]} b6 {[%emt 0:00:32]} 59. a6 {[%emt 0:00:30]} Kb8 {[%emt 0:00:04]} 60. Ke4 {[%emt 0:01:34] Weighted Error Value: White=0.25 (precise) /Black=0.49} 1-0